fUSD/lending_fUSD_20250514
["ID","MTS","AMOUNT","RATE_DAILY","PERIOD"]
[361055115,1747221049777,-400.0,0.00010988,2]
[361055116,1747221049787,-400.0,0.00010988,2]
[361055117,1747221049796,-400.0,0.00010988,2]
[361055118,1747221049806,-400.0,0.00010988,2]
[361055119,1747221049817,-823.943153,0.00010988,2]
[361055120,1747221049826,-902.09,0.00010988,2]
[361055121,1747221049837,-539.51,0.00010988,2]
[361055122,1747221049847,-1263.55,0.00010988,2]
[361055123,1747221049858,-400.0,0.00010988,2]
[361055124,1747221049868,-728.94,0.00010988,2]
[361055125,1747221049878,-400.0,0.00010988,2]
[361055126,1747221049888,-430.17,0.00010988,2]
[361055127,1747221049897,-400.0,0.00010988,2]
[361055128,1747221049907,-1262.48,0.00010988,2]
[361055129,1747221049916,-400.0,0.00010988,2]
[361055130,1747221049926,-400.0,0.00010988,2]
[361055131,1747221049935,-1107.27,0.00010988,2]
[361055132,1747221049945,-400.0,0.00010988,2]
[361055133,1747221049955,-2555.32,0.00010988,2]
[361055134,1747221049965,-400.0,0.00010988,2]
[361055135,1747221049975,-309.69889453,0.00010988,2]
[361055136,1747221049985,-801.88,0.00010988,2]
[361055137,1747221049994,-159.008907,0.00010988,2]
[361055138,1747221050004,-954.84,0.00010988,2]
[361055139,1747221050014,-1599.14,0.00010988,2]
[361055140,1747221050023,-158.843993,0.00010988,2]
[361055141,1747221050033,-831.33,0.00010988,2]
[361055142,1747221050049,-400.0,0.00010988,2]
[361055143,1747221050065,-174.0453238,0.00010988,2]
[361055144,1747221050078,-229.156728,0.00010988,2]
[361055145,1747221050092,-2135.235862,0.00010988,2]
[361055146,1747221050107,-470.77,0.00010988,2]
[361055147,1747221050121,-3719.91,0.00010988,2]
[361055148,1747221050136,-400.0,0.00010988,2]
[361055149,1747221050150,-400.0,0.00010988,2]
[361055150,1747221050165,-400.0,0.00010988,2]
[361055151,1747221050177,-1522.94,0.00010988,2]
[361055152,1747221050191,-732.92,0.00010988,2]
[361055153,1747221050205,-400.0,0.00010988,2]
[361055154,1747221050219,-287.087529,0.00010988,2]
[361055155,1747221050235,-400.0,0.00010988,2]
[361055156,1747221050250,-400.0,0.00010988,2]
[361055157,1747221050263,-989.58,0.00010988,2]
[361055158,1747221050278,-400.0,0.00010988,2]
[361055159,1747221050292,-400.0,0.00010988,2]
[361055160,1747221050306,-651.83,0.00010988,2]
[361055161,1747221050320,-1058.13,0.00010988,2]
[361055162,1747221050335,-543.17,0.00010988,2]
[361055163,1747221050350,-2569.41,0.00010988,2]
[361055164,1747221050365,-400.0,0.00010988,2]
[361055165,1747221050376,-2532.22,0.00010988,2]
[361055166,1747221050388,-864.67,0.00010988,2]
[361055167,1747221050405,-400.0,0.00010988,2]
[361055168,1747221050418,-1129.33,0.00010988,2]
[361055169,1747221050429,-400.0,0.00010988,2]
[361055170,1747221050441,-400.0,0.00010988,2]
[361055171,1747221050455,-1979.59,0.00010988,2]
[361055172,1747221050468,-400.0,0.00010988,2]
[361055173,1747221050480,-400.0,0.00010988,2]
[361055174,1747221050493,-400.0,0.00010988,2]
[361055175,1747221050506,-410.16,0.00010988,2]
[361055176,1747221050519,-400.0,0.00010988,2]
[361055177,1747221050532,-400.0,0.00010988,2]
[361055178,1747221050545,-400.0,0.00010988,2]
[361055179,1747221050558,-400.0,0.00010988,2]
[361055180,1747221050571,-446.46,0.00010988,2]
[361055181,1747221050583,-400.0,0.00010988,2]
[361055182,1747221050595,-400.0,0.00010988,2]
[361055183,1747221050608,-1382.84,0.00010988,2]
[361055184,1747221050621,-412.64,0.00010988,2]
[361055185,1747221050634,-150.39055178,0.00010988,2]
[361055186,1747221050647,-400.0,0.00010988,2]
[361055187,1747221050660,-400.0,0.00010988,2]
[361055188,1747221050673,-400.0,0.00010988,2]
[361055189,1747221050686,-400.0,0.00010988,2]
[361055190,1747221050699,-400.0,0.00010988,2]
[361055191,1747221050712,-3940.76,0.00010988,2]
[361055192,1747221050725,-400.0,0.00010988,2]
[361055193,1747221050739,-1772.35,0.00010988,2]
[361055194,1747221050751,-400.0,0.00010988,2]
[361055195,1747221050764,-3906.18,0.00010988,2]
[361055196,1747221050777,-280.41398928,0.00010988,2]
[361055197,1747221051447,-119.58601072,0.00010988,2]
[361055198,1747221051460,-400.0,0.00010988,2]
[361055199,1747221051471,-180.41398928,0.00010988,2]
[361055200,1747221051511,-2231.93400728,0.00010988,2]
[361055201,1747221051525,-1243.09200344,0.00010988,2]
[361055202,1747221051536,-206.64167657,0.00010988,2]
[361055203,1747221051550,-193.35832343,0.00010988,2]
[361055204,1747221051561,-400.0,0.00010988,2]
[361055205,1747221051572,-400.0,0.00010988,2]
[361055206,1747221051583,-3272.65,0.00010988,2]
[361055207,1747221051595,-2891.38,0.00010988,2]
[361055208,1747221051606,-400.0,0.00010988,2]
[361055209,1747221051616,-510.19779334,0.00010988,2]
[361055210,1747221051965,-1777.03,0.00010988,2]
[361055211,1747221051980,-291.99828763,0.00010988,2]
[361055212,1747221051999,-108.00171237,0.00010988,2]
[361055213,1747221052009,-411.27,0.00010988,2]
[361055214,1747221052018,-277.70838314,0.00010988,2]
[361055215,1747221052029,-122.29161686,0.00010988,2]
[361055216,1747221052038,-400.0,0.00010988,2]
[361055217,1747221052048,-55.54327865,0.00010988,2]
[361055218,1747221052076,-344.45672135,0.00010988,2]
[361055219,1747221052085,-176.3953978,0.00010988,2]
[361055220,1747221054000,-609.25863502,0.00010778,2]
[361055221,1747221054013,-223.6046022,0.00010988,2]
[361055222,1747221054025,-400.0,0.00010988,2]
[361055223,1747221054038,-400.0,0.00010988,2]
[361055224,1747221054050,-400.0,0.00010988,2]
[361055225,1747221054062,-10367.64,0.00010988,2]
[361055226,1747221054075,-400.0,0.00010988,2]
[361055227,1747221054087,-1593.19,0.00010988,2]
[361055228,1747221054099,-400.0,0.00010988,2]
[361055229,1747221054112,-1786.77,0.00010988,2]
[361055230,1747221054123,-521.33,0.00010988,2]
[361055231,1747221054135,-400.0,0.00010988,2]
[361055232,1747221054149,-513.62379465,0.00010988,2]
[361055233,1747221054164,-400.0,0.00010988,2]
[361055234,1747221054177,-1218.97,0.00010988,2]
[361055235,1747221054189,-977.03,0.00010988,2]
[361055236,1747221054203,-400.0,0.00010988,2]
[361055237,1747221054215,-400.0,0.00010988,2]
[361055238,1747221054227,-813.88,0.00010988,2]
[361055239,1747221054241,-513.77,0.00010988,2]
[361055240,1747221054254,-524.83550555,0.00010988,2]
[361055241,1747221054266,-5809.08,0.00010988,2]
[361055242,1747221054278,-400.0,0.00010988,2]
[361055243,1747221054291,-400.0,0.00010988,2]
[361055244,1747221054302,-553.13,0.00010988,2]
[361055245,1747221054314,-708.93,0.00010988,2]
[361055246,1747221054326,-400.0,0.00010988,2]
[361055247,1747221054337,-1661.35,0.00010988,2]
[361055248,1747221054349,-522.16,0.00010988,2]
[361055249,1747221054361,-400.0,0.00010988,2]
[361055250,1747221054372,-400.0,0.00010988,2]
[361055251,1747221054384,-400.0,0.00010988,2]
[361055252,1747221054396,-8420.19,0.00010988,2]
[361055253,1747221054407,-1008.65,0.00010988,2]
[361055254,1747221054419,-521.71,0.00010988,2]
[361055255,1747221054430,-400.0,0.00010988,2]
[361055256,1747221054442,-400.0,0.00010988,2]
[361055257,1747221054454,-1118.76,0.00010988,2]
[361055258,1747221054465,-1008.49,0.00010988,2]
[361055259,1747221054478,-400.0,0.00010988,2]
[361055260,1747221054489,-400.0,0.00010988,2]
[361055261,1747221054501,-400.0,0.00010988,2]
[361055262,1747221054513,-8065.24,0.00010988,2]
[361055263,1747221054525,-1748.55671691,0.00010988,2]
[361055264,1747221054545,-492.95,0.00010988,2]
[361055265,1747221054559,-395.37328309,0.00010988,2]
[361055266,1747221054571,-400.0,0.00010988,2]
[361055267,1747221054583,-227.82671681,0.00010988,2]
[361055268,1747221055305,-305.0000025,0.00010988,2]
[361055269,1747221055319,-652.01062997,0.00010988,2]
[361055270,1747221055343,-472.52265072,0.00010988,2]
[361055271,1747221055354,-400.0,0.00010988,2]
[361055272,1747221055365,-1987.86,0.00010988,2]
[361055273,1747221055377,-1662.89,0.00010988,2]
[361055274,1747221055389,-400.0,0.00010988,2]
[361055275,1747221055401,-400.0,0.00010988,2]
[361055276,1747221055412,-400.0,0.00010988,2]
[361055277,1747221055424,-3546.64,0.00010988,2]
[361055278,1747221055435,-400.0,0.00010988,2]
[361055279,1747221055447,-400.0,0.00010988,2]
[361055280,1747221055459,-461.73,0.00010988,2]
[361055281,1747221055471,-613.87,0.00010988,2]
[361055282,1747221055483,-400.0,0.00010988,2]
[361055283,1747221055494,-400.0,0.00010988,2]
[361055284,1747221055505,-1104.28,0.00010988,2]
[361055285,1747221055516,-2177.36,0.00010988,2]
[361055286,1747221055528,-400.0,0.00010988,2]
[361055287,1747221055539,-447.49,0.00010988,2]
[361055288,1747221055551,-1467.88,0.00010988,2]
[361055289,1747221055562,-495.19926668,0.00010988,2]
[361055290,1747221055574,-418.11,0.00010988,2]
[361055291,1747221055585,-885.4,0.00010988,2]
[361055292,1747221055597,-474.83,0.00010988,2]
[361055293,1747221055609,-925.39,0.00010988,2]
[361055294,1747221055621,-400.0,0.00010988,2]
[361055295,1747221055633,-528.19,0.00010988,2]
[361055296,1747221055644,-485.62,0.00010988,2]
[361055297,1747221056014,-706.96,0.00010988,2]
[361055298,1747221056026,-6708.93762013,0.00010988,2]
[361055299,1747221056038,-1029.61234503,0.00010988,2]
[361055300,1747221056054,-2033.66003484,0.00010988,2]
[361055301,1747221056064,-744.28,0.00010988,2]
[361055302,1747221056073,-263.64377567,0.00010988,2]
[361055303,1747221056085,-787.31622433,0.00010988,2]
[361055304,1747221056094,-1174.71044438,0.00010988,2]
[361055305,1747221056105,-288.56158288,0.00010988,2]
[361055306,1747221056117,-395.472,0.00010988,2]
[361055307,1747221056128,-1983.63196406,0.00010988,2]
[361055308,1747221057042,-2113.59400868,0.00010988,2]
[361055309,1747221057052,-415.2,0.00010988,2]
[361055310,1747221057062,-400.0,0.00010988,2]
[361055311,1747221057071,-159.03234679,0.00010988,2]
[361055312,1747221057081,-1244.38,0.00010988,2]
[361055313,1747221057091,-1740.18,0.00010988,2]
[361055314,1747221057100,-400.0,0.00010988,2]
[361055315,1747221057110,-400.0,0.00010988,2]
[361055316,1747221057120,-169.8894317,0.00010988,2]
[361055317,1747221057129,-400.0,0.00010988,2]
[361055318,1747221057138,-720.33,0.00010988,2]
[361055319,1747221057148,-400.0,0.00010988,2]
[361055320,1747221057159,-400.0,0.00010988,2]
[361055321,1747221057171,-855.79,0.00010988,2]
[361055322,1747221057180,-1490.8,0.00010988,2]
[361055323,1747221057190,-400.0,0.00010988,2]
[361055324,1747221057200,-1037.68,0.00010988,2]
[361055325,1747221057211,-1825.3,0.00010988,2]
[361055326,1747221057221,-400.0,0.00010988,2]
[361055327,1747221057230,-400.0,0.00010988,2]
[361055328,1747221057240,-509.44,0.00010988,2]
[361055329,1747221057250,-3386.25,0.00010988,2]
[361055330,1747221057259,-400.0,0.00010988,2]
[361055331,1747221057269,-400.0,0.00010988,2]
[361055332,1747221057279,-400.0,0.00010988,2]
[361055333,1747221057289,-400.0,0.00010988,2]
[361055334,1747221057299,-5324.83,0.00010988,2]
[361055335,1747221057309,-400.0,0.00010988,2]
[361055336,1747221057321,-1141.37,0.00010988,2]
[361055337,1747221057332,-3249.15,0.00010988,2]
[361055338,1747221057342,-2386.93,0.00010988,2]
[361055339,1747221057352,-575.67,0.00010988,2]
[361055340,1747221057362,-400.0,0.00010988,2]
[361055341,1747221057372,-487.50733567,0.00010988,2]
[361055342,1747221057382,-400.0,0.00010988,2]
[361055343,1747221057392,-400.0,0.00010988,2]
[361055344,1747221057402,-5578.4,0.00010988,2]
[361055345,1747221057411,-400.0,0.00010988,2]
[361055346,1747221057421,-400.0,0.00010988,2]
[361055347,1747221057430,-400.0,0.00010988,2]
[361055348,1747221057440,-400.0,0.00010988,2]
[361055349,1747221057449,-708.25,0.00010988,2]
[361055350,1747221057459,-2542.76,0.00010988,2]
[361055351,1747221057470,-400.0,0.00010988,2]
[361055352,1747221057479,-400.0,0.00010988,2]
[361055353,1747221057489,-400.0,0.00010988,2]
[361055354,1747221057498,-400.0,0.00010988,2]
[361055355,1747221057508,-400.0,0.00010988,2]
[361055356,1747221057518,-1812.93,0.00010988,2]
[361055357,1747221057527,-400.0,0.00010988,2]
[361055358,1747221057537,-1882.81,0.00010988,2]
[361055359,1747221057547,-662.48,0.00010988,2]
[361055360,1747221057556,-400.0,0.00010988,2]
[361055361,1747221057566,-400.0,0.00010988,2]
[361055362,1747221057576,-536.65,0.00010988,2]
[361055363,1747221057586,-400.0,0.00010988,2]
[361055364,1747221057595,-1000.0,0.00010988,2]
[361055365,1747221057605,-400.0,0.00010988,2]
[361055366,1747221057615,-832.21,0.00010988,2]
[361055367,1747221057625,-441.23,0.00010988,2]
[361055368,1747221057634,-1077.62,0.00010988,2]
[361055369,1747221057643,-400.0,0.00010988,2]
[361055370,1747221057653,-400.0,0.00010988,2]
[361055371,1747221057662,-1727.54,0.00010988,2]
[361055372,1747221057671,-400.0,0.00010988,2]
[361055373,1747221057682,-766.77,0.00010988,2]
[361055374,1747221057691,-400.0,0.00010988,2]
[361055375,1747221057701,-350.56797425,0.00010988,2]
[361055376,1747221057711,-400.0,0.00010988,2]
[361055377,1747221057720,-400.0,0.00010988,2]
[361055378,1747221057729,-400.0,0.00010988,2]
[361055379,1747221057739,-577.06,0.00010988,2]
[361055380,1747221057749,-978.54,0.00010988,2]
[361055381,1747221057758,-400.0,0.00010988,2]
[361055382,1747221057768,-400.0,0.00010988,2]
[361055383,1747221057777,-400.0,0.00010988,2]
[361055384,1747221057787,-471.47,0.00010988,2]
[361055385,1747221057796,-400.0,0.00010988,2]
[361055386,1747221057806,-893.98,0.00010988,2]
[361055387,1747221057815,-400.0,0.00010988,2]
[361055388,1747221057824,-497.3,0.00010988,2]
[361055389,1747221057834,-8703.18,0.00010988,2]
[361055390,1747221057844,-443.20526365,0.00010988,2]
[361055391,1747221057853,-400.0,0.00010988,2]
[361055392,1747221057863,-5198.54,0.00010988,2]
[361055393,1747221057872,-400.0,0.00010988,2]
[361055394,1747221057882,-400.0,0.00010988,2]
[361055395,1747221057893,-1239.86,0.00010988,2]
[361055396,1747221057903,-400.0,0.00010988,2]
[361055397,1747221057913,-400.0,0.00010988,2]
[361055398,1747221057922,-199.17822194,0.00010988,2]
[361055399,1747221057932,-670.19,0.00010988,2]
[361055400,1747221057941,-400.0,0.00010988,2]
[361055401,1747221057951,-400.0,0.00010988,2]
[361055402,1747221057960,-400.0,0.00010988,2]
[361055403,1747221057970,-401.81836128,0.00010988,2]
[361055404,1747221057980,-2138.74,0.00010988,2]
[361055405,1747221057990,-400.0,0.00010988,2]
[361055406,1747221057999,-400.0,0.00010988,2]
[361055407,1747221058009,-400.0,0.00010988,2]
[361055408,1747221058019,-410.76,0.00010988,2]
[361055409,1747221058028,-400.0,0.00010988,2]
[361055410,1747221058038,-400.0,0.00010988,2]
[361055411,1747221058048,-400.0,0.00010988,2]
[361055412,1747221058057,-400.0,0.00010988,2]
[361055413,1747221058067,-400.0,0.00010988,2]
[361055414,1747221058076,-200.0,0.00010989,2]
[361055415,1747221058086,-400.0,0.00010989,2]
[361055416,1747221058095,-400.0,0.00010989,2]
[361055417,1747221058105,-419.17,0.00010989,2]
[361055418,1747221058115,-400.0,0.00010989,2]
[361055419,1747221058125,-990.92,0.00010989,2]
[361055420,1747221058135,-400.0,0.00010989,2]
[361055421,1747221058146,-1316.16,0.00010989,2]
[361055422,1747221058156,-400.0,0.00010989,2]
[361055423,1747221058175,-400.0,0.00010989,2]
[361055424,1747221058185,-400.0,0.00010989,2]
[361055425,1747221058195,-435.64,0.00010989,2]
[361055426,1747221058204,-400.0,0.00010989,2]
[361055427,1747221058214,-400.0,0.00010989,2]
[361055428,1747221058223,-1425.43,0.00010989,2]
[361055429,1747221058233,-491.11,0.00010989,2]
[361055430,1747221058243,-714.6,0.00010989,2]
[361055431,1747221058252,-990.27,0.00010989,2]
[361055432,1747221058262,-407.27,0.00010989,2]
[361055433,1747221058271,-496.31,0.00010989,2]
[361055434,1747221058281,-1319.05,0.00010989,2]
[361055435,1747221058290,-539.51764996,0.00010989,2]
[361055436,1747221058300,-400.0,0.00010989,2]
[361055437,1747221058309,-400.0,0.00010989,2]
[361055438,1747221058319,-532.08,0.00010989,2]
[361055439,1747221058329,-400.0,0.00010989,2]
[361055440,1747221058339,-400.0,0.00010989,2]
[361055441,1747221058349,-400.0,0.00010989,2]
[361055442,1747221058358,-787.93,0.00010989,2]
[361055443,1747221058367,-400.0,0.00010989,2]
[361055444,1747221058376,-400.0,0.00010989,2]
[361055445,1747221058386,-400.0,0.00010989,2]
[361055446,1747221058396,-853.94,0.00010989,2]
[361055447,1747221058405,-400.0,0.00010989,2]
[361055448,1747221058415,-400.0,0.00010989,2]
[361055449,1747221058425,-400.0,0.00010989,2]
[361055450,1747221058434,-400.0,0.00010989,2]
[361055451,1747221058444,-455.23,0.00010989,2]
[361055452,1747221058453,-400.0,0.00010989,2]
[361055453,1747221058463,-400.0,0.00010989,2]
[361055454,1747221058473,-400.0,0.00010989,2]
[361055455,1747221058483,-400.0,0.00010989,2]
[361055456,1747221058493,-400.0,0.00010989,2]
[361055457,1747221058503,-400.0,0.00010989,2]
[361055458,1747221058513,-400.0,0.00010989,2]
[361055459,1747221058523,-400.0,0.00010989,2]
[361055460,1747221058533,-689.71,0.00010989,2]
[361055461,1747221058543,-400.0,0.00010989,2]
[361055462,1747221058552,-400.0,0.00010989,2]
[361055463,1747221058562,-414.49,0.00010989,2]
[361055464,1747221058571,-638.59,0.00010989,2]
[361055465,1747221058581,-400.0,0.00010989,2]
[361055466,1747221058591,-400.0,0.00010989,2]
[361055467,1747221058601,-400.0,0.00010989,2]
[361055468,1747221058611,-400.0,0.00010989,2]
[361055469,1747221058621,-400.0,0.00010989,2]
[361055470,1747221058631,-400.0,0.00010989,2]
[361055471,1747221058640,-986.64,0.00010989,2]
[361055472,1747221058650,-788.08,0.00010989,2]
[361055473,1747221058660,-400.0,0.00010989,2]
[361055474,1747221058670,-400.0,0.00010989,2]
[361055475,1747221058681,-175.65369827,0.00010989,2]
[361055476,1747221058691,-400.0,0.00010989,2]
[361055477,1747221058701,-489.11,0.00010989,2]
[361055478,1747221058711,-400.0,0.00010989,2]
[361055479,1747221058722,-406.21275853,0.00010989,2]
[361055480,1747221058731,-400.0,0.00010989,2]
[361055481,1747221058740,-400.0,0.00010989,2]
[361055482,1747221058750,-400.0,0.00010989,2]
[361055483,1747221058760,-400.0,0.00010989,2]
[361055484,1747221058770,-5046.54780132,0.00010989,2]
[361055485,1747221058780,-476.01,0.00010989,2]
[361055486,1747221058790,-400.0,0.00010989,2]
[361055487,1747221058800,-400.0,0.00010989,2]
[361055488,1747221058810,-400.0,0.00010989,2]
[361055489,1747221058820,-400.0,0.00010989,2]
[361055490,1747221058830,-400.0,0.00010989,2]
[361055491,1747221058839,-400.0,0.00010989,2]
[361055492,1747221058850,-687.75,0.00010989,2]
[361055493,1747221058860,-400.0,0.00010989,2]
[361055494,1747221058869,-400.0,0.00010989,2]
[361055495,1747221058878,-400.0,0.00010989,2]
[361055496,1747221058887,-400.0,0.00010989,2]
[361055497,1747221058897,-400.0,0.00010989,2]
[361055498,1747221058906,-400.0,0.00010989,2]
[361055499,1747221058915,-1874.0,0.00010989,2]
[361055500,1747221058924,-400.0,0.00010989,2]
[361055501,1747221058933,-400.0,0.00010989,2]
[361055502,1747221058943,-950.5,0.00010989,2]
[361055503,1747221058952,-400.0,0.00010989,2]
[361055504,1747221058962,-400.0,0.00010989,2]
[361055505,1747221058971,-400.0,0.00010989,2]
[361055506,1747221058981,-400.0,0.00010989,2]
[361055507,1747221058990,-400.0,0.00010989,2]
[361055508,1747221058999,-743.67,0.00010989,2]
[361055509,1747221059009,-400.0,0.00010989,2]
[361055510,1747221059019,-400.0,0.00010989,2]
[361055511,1747221059222,-1144.39,0.00010989,2]
[361055512,1747221059234,-1133.37,0.00010989,2]
[361055513,1747221059244,-400.0,0.00010989,2]
[361055514,1747221059253,-400.0,0.00010989,2]
[361055515,1747221059263,-400.0,0.00010989,2]
[361055516,1747221059272,-533.69,0.00010989,2]
[361055517,1747221059281,-829.03,0.00010989,2]
[361055518,1747221059291,-653.93,0.00010989,2]
[361055519,1747221059300,-400.0,0.00010989,2]
[361055520,1747221059310,-400.0,0.00010989,2]
[361055521,1747221059320,-400.0,0.00010989,2]
[361055522,1747221059330,-400.0,0.00010989,2]
[361055523,1747221059339,-3050.55,0.00010989,2]
[361055524,1747221059348,-400.0,0.00010989,2]
[361055525,1747221059359,-617.03,0.00010989,2]
[361055526,1747221059368,-400.0,0.00010989,2]
[361055527,1747221059378,-1250.96,0.00010989,2]
[361055528,1747221059388,-729.6,0.00010989,2]
[361055529,1747221059397,-400.0,0.00010989,2]
[361055530,1747221059407,-400.0,0.00010989,2]
[361055531,1747221059417,-400.0,0.00010989,2]
[361055532,1747221059427,-477.52,0.00010989,2]
[361055533,1747221059436,-400.0,0.00010989,2]
[361055534,1747221059446,-400.0,0.00010989,2]
[361055535,1747221059455,-400.0,0.00010989,2]
[361055536,1747221059465,-400.0,0.00010989,2]
[361055537,1747221059475,-400.0,0.00010989,2]
[361055538,1747221059485,-427.12,0.00010989,2]
[361055539,1747221059495,-400.0,0.00010989,2]
[361055540,1747221059504,-480.65,0.00010989,2]
[361055541,1747221059514,-400.0,0.00010989,2]
[361055542,1747221059524,-977.22,0.00010989,2]
[361055543,1747221059535,-400.0,0.00010989,2]
[361055544,1747221059545,-400.0,0.00010989,2]
[361055545,1747221059554,-400.0,0.00010989,2]
[361055546,1747221059564,-988.37,0.00010989,2]
[361055547,1747221059574,-671.65,0.00010989,2]
[361055548,1747221059584,-1116.33,0.00010989,2]
[361055549,1747221059594,-400.0,0.00010989,2]
[361055550,1747221059604,-1056.7,0.00010989,2]
[361055551,1747221059614,-1037.44,0.00010989,2]
[361055552,1747221059624,-400.0,0.00010989,2]
[361055553,1747221059633,-1241.98,0.00010989,2]
[361055554,1747221059643,-753.56,0.00010989,2]
[361055555,1747221059653,-606.12,0.00010989,2]
[361055556,1747221059663,-13643.88,0.00010989,2]
[361055557,1747221059672,-400.0,0.00010989,2]
[361055558,1747221059683,-466.61,0.00010989,2]
[361055559,1747221059692,-988.13,0.00010989,2]
[361055560,1747221059702,-1492.53,0.00010989,2]
[361055561,1747221059711,-953.52,0.00010989,2]
[361055562,1747221059721,-975.66,0.00010989,2]
[361055563,1747221059730,-1161.28,0.00010989,2]
[361055564,1747221059740,-15319.83,0.00010989,2]
[361055565,1747221059750,-2162.51,0.00010989,2]
[361055566,1747221059759,-400.0,0.00010989,2]
[361055567,1747221059771,-2281.45,0.00010989,2]
[361055568,1747221059780,-951.55,0.00010989,2]
[361055569,1747221059790,-474.6,0.00010989,2]
[361055570,1747221059799,-980.22,0.00010989,2]
[361055571,1747221059809,-870.65,0.00010989,2]
[361055572,1747221059818,-400.0,0.00010989,2]
[361055573,1747221059829,-400.0,0.00010989,2]
[361055574,1747221059838,-510.01,0.00010989,2]
[361055575,1747221059847,-400.0,0.00010989,2]
[361055576,1747221059857,-670.52,0.00010989,2]
[361055577,1747221059867,-948.77,0.00010989,2]
[361055578,1747221059877,-1197.69,0.00010989,2]
[361055579,1747221059886,-511.8,0.00010989,2]
[361055580,1747221059895,-502.73,0.00010989,2]
[361055581,1747221059905,-400.0,0.00010989,2]
[361055582,1747221059914,-400.0,0.00010989,2]
[361055583,1747221059924,-400.0,0.00010989,2]
[361055584,1747221059934,-400.0,0.00010989,2]
[361055585,1747221059943,-400.0,0.00010989,2]
[361055586,1747221059952,-824.65,0.00010989,2]
[361055587,1747221059962,-1623.25,0.00010989,2]
[361055588,1747221059971,-1968.92,0.00010989,2]
[361055589,1747221059980,-400.0,0.00010989,2]
[361055590,1747221059990,-400.0,0.00010989,2]
[361055591,1747221059999,-400.0,0.00010989,2]
[361055592,1747221060009,-910.57,0.00010989,2]
[361055593,1747221060019,-200.0,0.00010994,2]
[361055594,1747221060029,-198.71861531,0.00010998,2]
[361055595,1747221060039,-272.17274986,0.00011,2]
[361055596,1747221060049,-200.0,0.00011,2]
[361055597,1747221060059,-559.48333851,0.00011,2]
[361055598,1747221060069,-8051.676925,0.00011,2]
[361055599,1747221060079,-2002.6947152,0.00011,2]
[361055600,1747221060089,-163.7577333,0.00011,2]
[361055601,1747221060099,-49356.845545,0.00011,2]
[361055602,1747221060108,-2604.4479238,0.00011,2]
[361055603,1747221060118,-4278.0878654,0.00011,2]
[361055604,1747221060127,-560.7765689,0.00011007,2]
[361055605,1747221060137,-82269.7251369,0.00011007,2]
[361055606,1747221060147,-500.0,0.00011082,2]
[361055607,1747221060157,-502.22060306,0.00011082,2]
[361055608,1747221060169,-500.0,0.00011082,2]
[361055609,1747221060179,-706.96,0.00011082,2]
[361055610,1747221060189,-5146.60326777,0.00011099,2]
[361055611,1747221060199,-3437.34364766,0.00011099,2]
[361055612,1747221060209,-3437.34364765,0.00011101,2]
[361055613,1747221060219,-200.0,0.0001111,2]
[361055614,1747221060228,-5146.60326771,0.00011132,2]